bitfinex-derivatives/quotes_SOLF0:USTF0_20251207
["timestamp","ask_amount","ask_price","bid_price","bid_amount"]
[1765123193110,5.93600922,132.01,131.94,3.06]
[1765123193410,0.04870551,131.99,131.98,3.06]
[1765123193605,6.89208108,132.05,131.98,3.06]
[1765123193911,3.16,132.08,131.98,3.06]
[1765123194108,3.16,132.06,131.98,3.06]
[1765123194309,5.81202397,132.05,131.98,3.06]
[1765123194517,8.97202397,132.04,131.95,9.8799]
[1765123194811,0.05340468,132.01,131.98,0.05466489]
[1765123195012,0.04903127,132.01,131.98,0.05834923]
[1765123195408,3.20903127,132.01,131.98,0.05834923]
[1765123195915,3.16,131.99,131.98,0.05834923]
[1765123196320,8.87021951,131.99,131.98,0.05834923]
[1765123196716,3.16,131.98,131.88,6.8237]
[1765123196914,6.8176,132.0,131.88,6.8237]
[1765123196915,3.16,131.96,131.88,6.8237]
[1765123197215,3.16,132.0,131.9,3.06]
[1765123197415,8.87071269,131.99,131.9,3.06]
[1765123197616,8.87071269,131.98,131.9,3.06]
[1765123197821,0.05220222,131.96,131.93,3.11122221]
[1765123198004,0.05711407,131.96,131.93,3.11718744]
[1765123198210,0.05711407,131.96,131.94,3.06]
[1765123199617,10.14885729,132.05,131.95,3.06]
[1765123199822,3.16,132.03,131.91,109.1796]
[1765123200011,3.16,132.01,131.92,109.1753]
[1765123200212,3.16,132.01,131.92,3.06]
[1765123200617,0.05375074,131.98,131.95,0.05685562]
[1765123201118,3.21375074,131.98,131.95,0.05685562]
[1765123202012,3.21375074,131.98,131.88,109.2048]
[1765123202013,3.16,131.97,131.88,3.06]
[1765123202213,3.16,131.97,131.85,112.995]
[1765123202521,3.16,131.95,131.85,3.06]
[1765123202712,3.16,131.95,131.85,109.2305]
[1765123202912,0.05215854,131.91,131.89,0.0551222]
[1765123203112,0.05215854,131.91,131.83,106.1845]
[1765123203312,106.1833,131.84,131.69,106.2986]
[1765123203512,318.4225,131.89,131.68,106.3093]
[1765123204212,318.4225,131.89,131.62,319.0545]
[1765123204213,106.1754,131.85,131.69,106.3012]
[1765123204407,0.90250637,131.8,131.77,0.05096444]
[1765123204612,0.05250637,131.8,131.77,0.05096444]
[1765123204820,0.85,131.84,131.75,109.3072]
[1765123205021,0.05641948,131.8,131.77,3.11150217]
[1765123205218,0.85,131.84,131.77,109.34320217]
[1765123205414,0.85,131.84,131.77,0.05150217]
[1765123206117,0.85,131.84,131.77,106.28510217]
[1765123206316,0.05458384,131.82,131.78,106.2284]
[1765123206622,0.90458384,131.82,131.79,0.05200294]
[1765123207822,2.42458384,131.82,131.74,106.261]
[1765123208024,0.8,131.81,131.7,109.3482]
[1765123208225,0.8,131.8,131.69,106.2988]
[1765123208523,0.8,131.77,131.66,106.3247]
[1765123208824,0.8776933,131.73,131.7,0.05167981]
[1765123209015,0.87405093,131.73,131.7,0.05006986]
[1765123209220,106.2883,131.71,131.58,106.3852]
[1765123209421,0.77,131.7,131.6,106.3711]
[1765123209722,0.77,131.68,131.57,109.5624]
[1765123209917,0.77,131.68,131.58,109.5577]
[1765123210115,0.77,131.68,131.58,3.17]
[1765123210317,0.0583086,131.64,131.62,0.0553811]
[1765123211515,0.0583086,131.64,131.62,3.2253811]
[1765123212219,0.0583086,131.64,131.62,0.0553811]
[1765123214227,0.8283086,131.64,131.54,3.17]
[1765123214521,0.77,131.62,131.54,3.17]
[1765123214723,0.77,131.62,131.51,6.843]
[1765123215023,0.77,131.62,131.51,10.013]
[1765123215221,0.0560546,131.58,131.55,0.05209151]
[1765123215718,0.0560546,131.58,131.55,3.22209151]
[1765123216322,0.0560546,131.58,131.55,0.05209151]
[1765123216538,0.0560546,131.58,131.55,3.22209151]
[1765123216718,0.77,131.65,131.55,3.22209151]
[1765123216919,0.77,131.65,131.55,3.17]
[1765123217725,0.0540615,131.61,131.59,0.05405873]
[1765123217925,0.0540615,131.61,131.59,3.15405873]
[1765123218224,107.0792,131.67,131.59,3.15405873]
[1765123218526,0.76,131.69,131.59,9.9386]
[1765123218925,107.0621,131.69,131.59,9.9386]
[1765123219132,107.0621,131.69,131.57,106.3941]
[1765123219133,0.81820402,131.65,131.63,0.050348]
[1765123219320,0.81820402,131.65,131.56,68.88]
[1765123219321,0.76,131.65,131.56,68.88]
[1765123219523,7.5961,131.65,131.56,71.98]
[1765123219823,0.76,131.69,131.59,3.1]
[1765123220019,0.76,131.67,131.59,3.1]
[1765123220327,0.05182332,131.64,131.62,0.05081449]
[1765123220731,0.81182332,131.64,131.55,3.1]
[1765123220931,0.76,131.64,131.55,3.1]
[1765123221728,0.04990951,131.61,131.59,109.4794]
[1765123221935,0.05198393,131.61,131.59,3.1505412]
[1765123222122,0.05198393,131.61,131.59,109.5299412]
[1765123222319,0.05198393,131.61,131.59,106.4299412]
[1765123222528,0.05198393,131.61,131.59,0.0505412]
[1765123223029,0.05198393,131.61,131.59,3.1505412]
[1765123223228,0.76,131.69,131.6,3.1]
[1765123223624,107.0652,131.69,131.6,3.1]
[1765123223823,106.2996,131.7,131.6,3.1]
[1765123223824,0.81,131.68,131.6,3.1]
[1765123224226,0.04796259,131.65,131.63,0.05164726]
[1765123226329,0.04796259,131.65,131.6,3.1]
[1765123226930,0.04796259,131.65,131.6,109.4679]
[1765123227122,68.82,131.74,131.61,3.1]
[1765123227327,0.86,131.76,131.67,3.1]
[1765123227534,0.86,131.75,131.67,3.1]
[1765123227732,0.86,131.74,131.67,3.1]
[1765123228226,0.91345907,131.72,131.69,0.05438984]
[1765123228534,0.91345907,131.72,131.6,3.1]
[1765123228535,0.86,131.71,131.6,3.1]
[1765123228739,0.86,131.7,131.6,3.1]
[1765123229037,0.86,131.69,131.6,3.1]
[1765123229238,0.86,131.68,131.6,3.1]
[1765123229427,0.05248063,131.65,131.63,0.05645623]
[1765123230123,0.05248063,131.65,131.63,3.15645623]
[1765123230337,0.05248063,131.65,131.63,0.05645623]
[1765123230538,0.05248063,131.65,131.63,3.15645623]
[1765123230731,0.05248063,131.65,131.63,0.05645623]
[1765123236035,0.91248063,131.65,131.63,0.05645623]
[1765123236237,0.91248063,131.65,131.56,75.6802]
[1765123236238,2.43248063,131.65,131.56,3.1]
[1765123236435,0.86,131.64,131.56,3.1]
[1765123237134,0.05523509,131.61,131.59,0.04983053]
[1765123237333,0.04848382,131.61,131.59,0.04983053]
[1765123237626,0.04848382,131.61,131.54,3.1]
[1765123237627,7.74638382,131.61,131.54,3.1]
[1765123237830,0.90848382,131.61,131.54,3.1]
[1765123238027,0.04848382,131.61,131.55,3.1]
[1765123238441,0.90848382,131.61,131.57,0.05099686]
[1765123239944,0.04848382,131.61,131.57,3.15099686]
[1765123240239,0.04848382,131.61,131.57,109.54759686]
[1765123240538,0.04848382,131.61,131.57,3.15099686]
[1765123240938,0.04848382,131.61,131.57,9.99069686]
[1765123241144,0.04848382,131.61,131.57,3.15099686]
[1765123241343,0.90848382,131.61,131.57,0.05099686]
[1765123241941,0.90848382,131.61,131.45,106.4905]
[1765123241942,0.86,131.55,131.46,3.1]
[1765123242149,0.86,131.54,131.46,3.1]
[1765123242542,7.7015,131.54,131.46,3.1]
[1765123243042,0.05057881,131.51,131.49,0.05772106]
[1765123243842,0.91057881,131.51,131.4,68.58]
[1765123244048,6.78844455,131.5,131.42,3.1]
[1765123244240,0.86,131.5,131.42,3.1]
[1765123244437,5.93933936,131.49,131.42,3.1]
[1765123244642,5.93933936,131.48,131.42,3.1]
[1765123244836,0.04899431,131.46,131.42,3.1]
[1765123245040,0.04899431,131.46,131.44,0.05330069]
[1765123245644,0.04899431,131.46,131.44,3.15330069]
[1765123247064,0.04899431,131.46,131.4,3.1]
[1765123248058,5.96604028,131.45,131.42,0.05333116]
[1765123248260,0.04899431,131.46,131.42,3.17333116]
[1765123248461,5.96601159,131.45,131.42,3.17333116]
[1765123248666,0.04899431,131.46,131.42,3.17333116]
[1765123248868,5.96598227,131.45,131.42,3.17333116]
[1765123249162,0.04899431,131.46,131.42,3.17333116]
[1765123250758,5.96731884,131.45,131.42,0.05333116]
[1765123250963,0.04899431,131.46,131.42,0.05333116]
[1765123251165,5.96733382,131.45,131.42,0.05333116]
[1765123251373,0.04899431,131.46,131.42,0.05333116]
[1765123251561,5.97064597,131.45,131.42,3.17333116]
[1765123251868,0.04899431,131.46,131.42,3.17333116]
[1765123252059,5.97058774,131.45,131.42,3.17333116]
[1765123252259,0.04899431,131.46,131.42,3.17333116]
[1765123254665,0.04899431,131.46,131.43,6.8469]
[1765123254965,0.04899431,131.46,131.44,3.12]
[1765123255766,0.04899431,131.46,131.42,3.17333116]
[1765123257673,0.91899431,131.46,131.42,0.05333116]
[1765123258069,0.04899431,131.46,131.42,3.17333116]
[1765123258571,0.91899431,131.46,131.42,3.17333116]
[1765123259867,0.04899431,131.46,131.42,3.17333116]
[1765123260971,0.04899431,131.46,131.43,3.31]
[1765123261277,0.91,131.53,131.45,3.31]
[1765123261468,6.78047634,131.52,131.45,3.31]
[1765123261664,0.91,131.5,131.41,3.31]
[1765123261866,5.87047634,131.49,131.41,3.31]
[1765123262062,0.0535777,131.46,131.41,3.31]
[1765123262268,0.0535777,131.46,131.44,3.36820123]
[1765123262463,0.0535777,131.46,131.44,3.36005768]
[1765123262971,0.97,131.52,131.44,3.36005768]
[1765123263163,5.87023329,131.51,131.44,3.31]
[1765123263367,0.97,131.52,131.44,3.31]
[1765123263570,5.87027052,131.51,131.44,3.31]
[1765123263771,0.97,131.52,131.44,3.31]
[1765123263772,5.87027052,131.5,131.44,3.31]
[1765123263973,0.05741978,131.48,131.46,0.05462128]
[1765123264372,115.66405173,131.56,131.46,3.36462128]
[1765123264373,7.91129669,131.56,131.46,3.36462128]
[1765123264573,1.02,131.59,131.48,3.31]
[1765123264774,5.86871771,131.58,131.48,3.31]
[1765123264976,5.86871771,131.57,131.48,3.31]
[1765123265179,106.3932,131.58,131.48,3.31]
[1765123265370,0.05159539,131.54,131.52,3.36567969]
[1765123267567,0.05159539,131.54,131.52,0.05567969]
[1765123273191,1.07159539,131.54,131.52,0.05567969]
[1765123273378,0.05159539,131.54,131.52,0.05567969]
[1765123273986,1.07159539,131.54,131.52,0.05567969]
[1765123274290,0.05159539,131.54,131.52,0.05567969]
[1765123274675,0.05159539,131.54,131.52,3.36567969]
[1765123276579,5.89747343,131.59,131.52,3.36567969]
[1765123276784,5.89747343,131.58,131.52,3.31]
[1765123276987,6.94129669,131.63,131.54,3.31]
[1765123277179,5.89650258,131.62,131.54,3.31]
[1765123277379,5.89650258,131.61,131.54,3.31]
[1765123277589,0.04790587,131.59,131.57,3.36]
[1765123277884,0.04790587,131.59,131.57,3.41713089]
[1765123281485,0.04790587,131.59,131.57,0.05713089]
[1765123281687,6.98559027,131.58,131.53,3.36]
[1765123281988,1.08,131.58,131.53,3.36]
[1765123282187,0.04790587,131.59,131.53,3.36]
[1765123282491,5.90662839,131.58,131.53,3.36]
[1765123282788,1.12790587,131.59,131.54,3.41382319]
[1765123282992,5.95831747,131.58,131.54,3.41382319]
[1765123283186,6.98714392,131.57,131.54,0.05382319]
[1765123283386,6.98824641,131.56,131.54,0.05382319]
[1765123283580,5.90824641,131.55,131.54,0.05382319]
[1765123284087,1.13158505,131.58,131.54,0.05382319]
[1765123284287,5.90898939,131.57,131.54,0.05382319]
[1765123284589,5.90898939,131.56,131.54,0.05382319]
[1765123284782,1.13158505,131.58,131.54,0.05382319]
[1765123284985,6.98949165,131.57,131.54,0.05382319]
[1765123285189,0.05158505,131.58,131.54,3.41382319]
[1765123285388,5.91070907,131.57,131.54,0.05382319]
[1765123285692,6.99070907,131.56,131.54,0.05382319]
[1765123285991,5.91070907,131.55,131.54,0.05382319]
[1765123286397,1.08,131.57,131.54,0.05382319]
[1765123286592,5.91330447,131.56,131.54,0.05382319]
[1765123286785,1.08,131.57,131.54,0.05382319]
[1765123286990,5.91300839,131.56,131.54,0.05382319]
[1765123287190,1.08,131.56,131.54,0.05382319]
[1765123287587,5.91340985,131.55,131.54,0.05382319]
[1765123287788,6.99340985,131.55,131.54,0.05382319]
[1765123288886,1.08,131.54,131.47,3.36]
[1765123289793,1.13243415,131.52,131.49,0.0579273]
[1765123290093,1.08,131.5,131.49,0.04916344]
[1765123290295,1.08,131.49,131.43,3.36]
[1765123290497,1.08,131.47,131.4,3.36]
[1765123291196,1.08,131.47,131.42,3.41310838]
[1765123291197,0.05747183,131.45,131.42,3.41310838]
[1765123292293,1.13747183,131.45,131.42,0.05310838]
[1765123292495,5.90236345,131.44,131.42,0.05310838]
[1765123292696,6.98236571,131.43,131.42,0.05310838]
[1765123292896,106.5309,131.41,131.31,3.36]
[1765123293100,106.5474,131.39,131.27,3.36]
[1765123293393,5.90236571,131.38,131.31,3.36]
[1765123293697,5.90236571,131.37,131.31,3.36]
[1765123293893,75.38129669,131.4,131.27,106.6389]
[1765123293894,0.04900346,131.35,131.33,0.05003992]
[1765123294094,0.04900346,131.35,131.22,106.6777]
[1765123294095,74.35962427,131.34,131.23,3.36]
[1765123294290,5.89962427,131.33,131.23,3.36]
[1765123294600,5.89962427,131.32,131.23,3.36]
[1765123294790,68.46,131.34,131.23,3.36]
[1765123294791,175.0483,131.34,131.23,3.36]
[1765123295099,0.05235918,131.3,131.27,3.40881746]
[1765123295293,0.05235918,131.3,131.27,0.04828463]
[1765123297688,0.05235918,131.3,131.27,3.40828463]
[1765123298191,0.05235918,131.3,131.27,0.04828463]
[1765123298693,106.6268,131.29,131.18,3.36]
[1765123298892,106.6268,131.29,131.14,106.7416]
[1765123298893,113.53699669,131.33,131.2,3.36]
[1765123299096,115.83335173,131.35,131.22,3.36]
[1765123299097,68.48,131.34,131.22,3.36]
[1765123299288,75.3314,131.35,131.24,3.36]
[1765123299491,106.5797,131.35,131.26,3.36]
[1765123299887,0.05143718,131.32,131.26,3.36]
[1765123301993,0.05143718,131.32,131.26,110.0097]
[1765123302297,106.5284,131.41,131.3,3.36]
[1765123302491,106.5544,131.38,131.3,3.36]
[1765123302697,106.5615,131.37,131.3,3.36]
[1765123302891,106.5615,131.37,131.24,3.36]
[1765123303091,0.05281097,131.32,131.29,3.4093721]
[1765123303394,106.5364,131.4,131.29,3.4093721]
[1765123303395,106.5364,131.4,131.29,3.36]
[1765123303698,106.5295,131.41,131.3,3.36]
[1765123304003,106.5446,131.39,131.3,3.36]
[1765123304408,0.05800143,131.36,131.33,0.05794287]
[1765123305803,0.05800143,131.36,131.33,3.41794287]
[1765123306203,0.05800143,131.36,131.33,0.05794287]
[1765123307303,0.05800143,131.36,131.33,3.41794287]
[1765123307800,106.5016,131.45,131.34,3.29]
[1765123308201,6.8462,131.45,131.36,3.29]
[1765123308601,0.05732442,131.42,131.39,3.33903576]
[1765123309400,0.05732442,131.42,131.39,0.04903576]
[1765123311812,106.5289,131.41,131.3,3.29]
[1765123312108,106.5547,131.38,131.3,3.29]
[1765123312311,6.8516,131.35,131.3,3.29]
[1765123312809,106.5564,131.38,131.3,3.29]
[1765123313112,13.6926,131.45,131.33,3.29]
[1765123313113,106.5078,131.44,131.33,3.29]
[1765123313306,106.5158,131.43,131.33,3.29]
[1765123313505,106.5078,131.44,131.33,3.29]
[1765123313506,106.5078,131.44,131.34,3.29]
[1765123313699,106.5078,131.44,131.3,106.6141]
[1765123313700,325.36534222,131.43,131.28,3.29]
[1765123313911,0.04982168,131.37,131.34,3.3396044]
[1765123314106,0.05515498,131.37,131.34,3.34082728]
[1765123317919,0.05515498,131.37,131.28,106.6326]
[1765123317920,106.5717,131.36,131.26,3.09]
[1765123318607,106.5645,131.37,131.26,3.09]
[1765123318804,0.04993571,131.33,131.31,3.09]
[1765123319006,0.04923116,131.33,131.31,3.14524834]
[1765123319210,106.5402,131.4,131.31,3.14524834]
[1765123319402,106.5402,131.4,131.31,3.09]
[1765123320220,0.049066,131.37,131.34,0.05781961]
[1765123321618,0.049066,131.37,131.34,3.14781961]
[1765123323313,0.049066,131.37,131.34,0.05781961]
[1765123324116,0.049066,131.37,131.34,3.14781961]
[1765123324715,0.049066,131.37,131.34,0.05781961]
[1765123326218,5.91615686,131.36,131.34,0.05781961]
[1765123326425,0.049066,131.37,131.34,0.05781961]
[1765123326725,12.76703421,131.36,131.34,0.05781961]
[1765123326918,5.91623421,131.35,131.34,0.05781961]
[1765123327421,106.5852,131.34,131.24,3.09]
[1765123327628,112.51133421,131.33,131.24,3.09]
[1765123327814,5.91623421,131.32,131.24,3.09]
[1765123328122,5.92306459,131.31,131.24,3.09]
[1765123328319,0.05484045,131.29,131.26,3.14169895]
[1765123329115,0.00484045,131.29,131.26,3.14169895]
[1765123329617,7.00594011,131.36,131.27,3.09]
[1765123329919,5.9310419,131.35,131.27,3.09]
[1765123330117,6.8508,131.37,131.28,3.09]
[1765123330322,5.93093464,131.36,131.29,3.09]
[1765123330523,5.93093464,131.35,131.29,3.09]
[1765123330718,0.05213827,131.34,131.32,3.09]
[1765123330918,0.05213827,131.34,131.32,3.14685187]
[1765123333121,5.95416821,131.33,131.32,0.05685187]
[1765123333325,5.95416821,131.33,131.32,3.14685187]
[1765123333326,5.96200669,131.33,131.32,3.14685187]
[1765123333625,0.05213827,131.34,131.32,3.14685187]
[1765123334322,5.97004704,131.33,131.32,3.14685187]
[1765123334919,0.05213827,131.34,131.32,3.14685187]
[1765123335332,7.00594011,131.38,131.32,3.14685187]
[1765123335625,7.00594011,131.39,131.32,3.14685187]
[1765123335822,7.00594011,131.39,131.32,3.09]
[1765123336022,4.50753872,131.4,131.36,3.09]
[1765123336225,13.88259339,131.44,131.36,3.09]
[1765123336226,9.25385173,131.44,131.36,3.09]
[1765123336418,0.05685664,131.39,131.38,3.09]
[1765123336624,0.05783555,131.4,131.38,3.09]
[1765123336826,0.05783555,131.4,131.38,3.14827884]
[1765123339822,3.16783555,131.4,131.38,0.05827884]
[1765123340026,0.05783555,131.4,131.38,0.05827884]
[1765123340926,0.05783555,131.4,131.38,3.28827884]
[1765123341726,0.05783555,131.4,131.39,3.23]
[1765123341921,0.05783555,131.4,131.38,0.05827884]
[1765123342121,0.05783555,131.4,131.38,3.28827884]
[1765123343424,0.05783555,131.4,131.39,10.0792]
[1765123344831,68.42,131.47,131.41,3.23]
[1765123345026,3.11,131.48,131.42,109.7488]
[1765123345226,3.11,131.5,131.42,109.7488]
[1765123345835,0.04865715,131.47,131.45,0.05208262]
[1765123346423,3.15865715,131.47,131.45,0.05208262]
[1765123346631,3.11,131.46,131.36,3.23]
[1765123346822,3.11,131.45,131.36,3.23]
[1765123347444,3.11,131.43,131.36,3.23]
[1765123347650,5.85334615,131.42,131.36,3.23]
[1765123347830,3.15930393,131.4,131.38,0.05312204]
[1765123348142,3.16729259,131.4,131.38,0.04945295]
[1765123349140,3.11,131.38,131.31,3.23]
[1765123350143,106.537,131.4,131.3,68.38]
[1765123350144,0.05776056,131.36,131.33,3.28235609]
[1765123350436,0.04884779,131.36,131.33,3.28257857]
[1765123351047,1.39479341,131.41,131.33,3.28257857]
[1765123351242,1.39479341,131.41,131.33,3.23]
[1765123351446,6.849,131.4,131.33,3.23]
[1765123351845,106.5325,131.41,131.33,3.23]
[1765123352040,0.05740327,131.38,131.36,0.05799613]
[1765123352754,6.90740327,131.38,131.36,0.05799613]
[1765123353046,6.90740327,131.38,131.3,3.23]
[1765123353234,8.249,131.4,131.31,3.23]
[1765123354040,0.05006134,131.37,131.34,0.0553562]
[1765123354653,0.05006134,131.37,131.34,3.2853562]
[1765123356257,0.05006134,131.37,131.35,3.23]
[1765123356956,1.45006134,131.37,131.34,0.0553562]
[1765123357147,0.05006134,131.37,131.34,0.0553562]
[1765123357354,8.30056134,131.37,131.34,0.0553562]
[1765123357651,1.45006134,131.37,131.34,0.0553562]
[1765123358851,1.45006134,131.37,131.26,152.02953437]
[1765123359055,1.4,131.36,131.26,3.23]
[1765123359554,1.4,131.34,131.26,3.23]
[1765123360059,0.05465474,131.31,131.29,0.05362765]
[1765123360652,1.45465474,131.31,131.29,0.05362765]
[1765123360953,1.4,131.3,131.2,3.23]
[1765123361153,1.4,131.3,131.21,3.23]
[1765123361949,0.05469198,131.27,131.21,3.23]
[1765123362155,0.05469198,131.27,131.24,3.27932]
[1765123362356,0.05469198,131.27,131.25,3.23]
[1765123364258,0.05469198,131.27,131.24,0.04932]
[1765123364259,1.45469198,131.27,131.24,0.04932]
[1765123369368,8.31039198,131.27,131.24,0.04932]
[1765123369665,1.4,131.26,131.17,3.34]
[1765123369867,8.2565,131.26,131.17,10.2004]
[1765123370165,1.4,131.25,131.18,3.34]
[1765123370469,0.0501766,131.23,131.18,3.34]
[1765123371359,1.4501766,131.23,131.16,3.34]
[1765123371560,0.05853515,131.21,131.16,3.34]
[1765123375971,1.4,131.2,131.13,3.34]
[1765123376176,1.45185825,131.18,131.13,3.34]
[1765123376655,1.45185825,131.18,131.09,3.34]
[1765123376855,0.05459633,131.15,131.09,3.34]
[1765123378771,0.05459633,131.15,131.1,3.34]
[1765123378965,0.05459633,131.15,131.11,3.34]
[1765123380664,1.46459633,131.15,131.11,3.34]
[1765123380870,0.05459633,131.15,131.11,3.34]
[1765123382565,0.05459633,131.15,131.11,110.1039]
[1765123382767,1.46,131.24,131.14,3.29]
[1765123383168,1.46,131.24,131.15,3.29]
[1765123383765,0.05809925,131.21,131.19,3.29]
[1765123383960,1.51809925,131.21,131.18,0.05538475]
[1765123384770,1.51809925,131.21,131.11,3.29]
[1765123384974,1.46,131.21,131.11,3.29]
[1765123385165,8.3189,131.21,131.11,3.29]
[1765123385370,1.4,131.23,131.12,3.29]
[1765123385568,1.4,131.21,131.14,3.29]
[1765123386073,7.15255579,131.2,131.14,3.29]
[1765123386285,1.4,131.18,131.11,10.1537]
[1765123386586,1.4,131.18,131.11,3.29]
[1765123386881,1.45665546,131.16,131.11,3.29]
[1765123387270,1.45665546,131.16,131.09,75.2047]
[1765123387470,1.45665546,131.16,131.08,3.29]
[1765123387471,1.45665546,131.16,131.06,110.0983]
[1765123387779,5.75438643,131.15,131.09,6.8648]
[1765123387979,0.05774086,131.13,131.09,10.1548]
[1765123388372,0.05774086,131.13,131.1,3.29]
[1765123388982,1.45774086,131.13,131.07,3.29]
[1765123389376,1.45774086,131.13,131.03,72.59052548]
[1765123389577,1.4,131.1,131.03,7.54052548]
[1765123389878,106.7377,131.16,131.04,3.29]
[1765123389879,0.04927762,131.09,131.04,3.29]
[1765123390184,1.44927762,131.09,131.03,4.25052548]
[1765123390371,1.4,131.07,130.97,3.29]
[1765123390573,1.4,131.07,130.98,3.29]
[1765123390771,0.05022715,131.03,130.98,3.29]
[1765123391189,1.45022715,131.03,130.98,3.29]
[1765123391374,0.05022715,131.03,130.98,3.29]
[1765123392276,8.3139,131.12,131.0,3.29]
[1765123392475,7.19879049,131.11,131.0,3.29]
[1765123392679,5.74879049,131.1,131.01,3.29]
[1765123392877,1.45,131.11,131.01,3.29]
[1765123393276,0.05793461,131.07,131.05,3.3462621]
[1765123393482,1.45,131.15,131.05,3.3462621]
[1765123393786,7.19810863,131.14,131.05,3.29]
[1765123393984,5.74810863,131.13,131.05,3.29]
[1765123394187,5.74810863,131.12,131.05,3.29]
[1765123394485,0.05612403,131.1,131.07,0.05181486]
[1765123394690,1.50612403,131.1,131.07,0.05181486]
[1765123395579,0.05612403,131.1,131.07,0.05181486]
[1765123395791,1.50612403,131.1,131.07,0.05181486]
[1765123396092,0.05612403,131.1,131.07,3.34181486]
[1765123397296,0.05612403,131.1,131.07,0.05181486]
[1765123397500,0.05612403,131.1,131.07,3.34181486]
[1765123397696,0.05612403,131.1,131.07,0.05181486]
[1765123398104,0.05612403,131.1,131.07,3.18181486]
[1765123399197,0.05612403,131.1,131.07,0.05181486]
[1765123399198,1.49612403,131.1,131.07,0.05181486]
[1765123399404,1.44,131.09,131.07,0.05181486]
[1765123399800,0.05612403,131.1,131.07,3.18181486]
[1765123400398,115.96535173,131.19,131.1,109.9077]
[1765123400399,1.44,131.18,131.1,109.9077]
[1765123400695,5.75484583,131.17,131.12,3.13]
[1765123400907,1.44,131.2,131.13,3.13]
[1765123401099,5.75449508,131.19,131.13,3.13]
[1765123401305,0.05626819,131.17,131.15,3.18675095]
[1765123401509,5.75449508,131.16,131.15,3.18675095]
[1765123402309,0.05626819,131.17,131.15,3.18675095]
[1765123402605,0.05626819,131.17,131.15,0.05675095]
[1765123402606,5.76778207,131.16,131.15,0.05675095]
[1765123403797,5.76778207,131.16,131.07,6.8659]
[1765123403798,1.44,131.15,131.07,3.13]
[1765123403997,5.76778207,131.14,131.07,3.13]
[1765123404209,5.76778207,131.13,131.07,3.13]
[1765123404412,5.76778207,131.12,131.07,3.13]
[1765123404606,6.8626,131.14,131.07,3.13]
[1765123404909,0.05513796,131.12,131.09,3.18507719]
[1765123405104,5.78074423,131.11,131.09,3.18507719]
[1765123405311,0.05513796,131.12,131.09,3.18507719]
[1765123405512,5.78421812,131.11,131.09,3.18507719]
[1765123405705,0.05513796,131.12,131.09,3.18507719]
[1765123405905,5.78459504,131.11,131.09,0.05507719]
[1765123406099,0.05513796,131.12,131.09,0.05507719]
[1765123406100,5.78459504,131.1,131.09,0.05507719]
[1765123407007,6.91883796,131.12,131.09,0.05507719]
[1765123407211,5.78653246,131.11,131.09,0.05507719]
[1765123407402,5.78824998,131.1,131.09,0.05507719]
[1765123408412,6.91883796,131.12,131.09,0.05507719]
[1765123408613,5.79057125,131.11,131.09,0.05507719]
[1765123408910,5.7907202,131.1,131.09,0.05507719]
[1765123409309,0.05513796,131.12,131.09,3.18507719]
[1765123409510,5.79381422,131.11,131.09,3.18507719]
[1765123409811,0.05513796,131.12,131.09,3.18507719]
[1765123410013,5.79381311,131.11,131.09,3.18507719]
[1765123410211,5.79645068,131.1,131.09,0.05507719]
[1765123410809,5.79645068,131.1,131.09,3.18507719]
[1765123411002,0.05513796,131.12,131.09,3.18507719]
[1765123411208,5.8252359,131.11,131.09,0.05507719]
[1765123411519,5.8252359,131.1,131.09,3.18507719]
[1765123411914,5.8252359,131.1,131.09,0.05507719]
[1765123412214,5.8252359,131.1,131.09,3.18507719]
[1765123412917,2.4152359,131.1,131.09,3.18507719]
[1765123413112,0.05513796,131.12,131.09,3.18507719]
[1765123414710,0.05513796,131.12,131.1,3.13]
[1765123415215,0.05513796,131.12,131.09,0.05507719]
[1765123415417,3.22513796,131.12,131.09,0.05507719]
[1765123416007,10.21505578,131.12,131.09,0.05507719]